Cogmind - Beta 16.1 @@@ ROGUE MODE // 2026.03.14 @ 15:00:54 Player: RecursiveCharlatan Result: Destroyed by Striker with Plasma Lance Performance ------------- Evolutions (5) 2500 Regions Visited (10) 2000 Robots Destroyed (146) 730 Value Destroyed (5673) 5673 Prototype IDs (31) 620 Alien Tech Used (0) 0 Bonus (2504) 2504 TOTAL SCORE: 14027 Bonus ------- Follower Combat Kills 223 Met Warlord at Base 500 MAIN.C Attacked Warlord 500 Warlord Defense Kills 1306 Friendly Fire -25 Cogmind --------- Core Integrity 0/1000 Matter 307/800 Energy 150/150 System Corruption 12% Temperature Cool (0) Movement Treading (114) Location -5/Warlord Parts ------- > --- POWER (2) -------- VC-Antimatter Reactor > --- PROPULSION (4) --- Treaded Armored-Carbon Exoskeleton > --- UTILITY (8) ------ Armored Scrap Engine Experimental Matter Compressor Enhanced Optical Array Improved Signal Interpreter Improved Hacking Suite Ghost Barrier > --- WEAPON (3) ------- (None) > --- INVENTORY (5) ---- Improved Sensor Array System Shield Gamma Rifle Multitool Heavy Pick Peak State ------------ > --- POWER ------------ Meta Core VC-Antimatter Reactor > --- PROPULSION ------- Treaded Armored-Carbon Exoskeleton > --- UTILITY ---------- Armored Scrap Engine Advanced Cooling System Medium Storage Unit Enhanced Optical Array Improved Signal Interpreter Advanced Melee Analysis Suite Layered Medium Armor Plating Improved Hacking Suite > --- WEAPON ----------- Thermoblaster Hvy. KE Autocannon Construct/C > --- INVENTORY -------- Experimental Matter Compressor Improved Sensor Array Improved Shield Generator System Shield Ghost Barrier Improved Dynamic Insulation System Gamma Rifle Precision Rocket Launcher Multitool Heavy Pick [Rating: 133] Favorites ----------- Power Meta Core Engine Light Ion Engine Power Core Meta Core Reactor Constructs Propulsion Constructs Treads Constructs Leg Aluminum Leg Hover Unit Aerolev Unit Flight Unit Improved VTOL Module Utility Small Storage Unit Device Armored Scrap Engine Storage Small Storage Unit Processor Enhanced Optical Array Hackware Improved Hacking Suite Protection Improved Utility Shielding Weapon Constructs Energy Cannon Constructs Ballistic Gun Assault Rifle Ballistic Cannon Constructs Launcher Thermoblaster Special Weapon Multitool Impact Weapon Makeshift Hammer Slashing Weapon Power Sword Piercing Weapon Heavy Pick Build | -11 -10 -10 -8 -8 -8 -6 -5 -5 -5 -5 ------- Run | Yrd Mat Sub Mat Sto Rec Fac Fac Upp Upp War Slots Evolved 10 | . . . 4 . . 4 2 . . . Power 1 | . . . . . . . 1 . . . Propulsion 2 | . . . 2 . . . . . . . Utility 6 | . . . 2 . . 3 1 . . . Weapon 1 | . . . . . . 1 . . . . Parts Attached 82 | 6 2 8 24 5 5 19 6 . . 7 Power 6 | 1 . 1 3 . . 1 . . . . Engine 3 | 1 . 1 1 . . . . . . . Core 3 | . . . 2 . . 1 . . . . Reactor . | . . . . . . . . . . . Propulsion 19 | 1 2 2 11 3 . . . . . . Treads 4 | . 2 2 . . . . . . . . Leg 7 | 1 . . 6 . . . . . . . Wheel . | . . . . . . . . . . . Hover 7 | . . . 4 3 . . . . . . Flight 1 | . . . 1 . . . . . . . Utility 37 | 2 . . 6 1 3 14 5 . . 6 Device 13 | 1 . . . . 1 5 2 . . 4 Storage 5 | 1 . . . 1 . 1 1 . . 1 Processor 4 | . . . . . . 4 . . . . Hackware 6 | . . . 1 . 1 3 . . . 1 Protection 9 | . . . 5 . 1 1 2 . . . Artifact . | . . . . . . . . . . . Weapon 20 | 2 . 5 4 1 2 4 1 . . 1 Energy Gun . | . . . . . . . . . . . Energy Cannon 1 | . . . . . . 1 . . . . Ballistic Gun 9 | 2 . 2 3 1 1 . . . . . Ballistic Cannon 1 | . . 1 . . . . . . . . Launcher 3 | . . 1 . . . 1 . . . 1 Special Weapon 2 | . . . 1 . . 1 . . . . Impact Weapon 2 | . . 1 . . 1 . . . . . Slashing Weapon 1 | . . . . . . 1 . . . . Piercing Weapon 1 | . . . . . . . 1 . . . Special Melee Weapon . | . . . . . . . . . . . Unidentified Prototypes 9 | . . . 2 1 1 2 1 . . 2 Parts Lost 42 | . 2 2 11 2 2 7 3 . . 13 Power 9 | . . 1 3 . 1 1 1 . . 2 Propulsion 13 | . 1 . 4 1 1 3 . . . 3 Utility 8 | . 1 . 1 . . 1 1 . . 4 Weapon 12 | . . 1 3 1 . 2 1 . . 4 Highest Loss Streak 10 | . 1 1 4 1 1 4 2 . . 10 To Critical Strikes . | . . . . . . . . . . . Average Backups 7 | 2 4 7 7 8 7 7 6 10 10 9 Power . | . 1 . . . . . . . . . Propulsion . | . 1 2 . . . . . . . . Utility 4 | . . 2 4 4 5 5 4 5 5 5 Weapon 1 | . 1 2 1 2 1 . 1 4 3 3 Tool/Special . | . . . . . . . . . . . Unused Backups 16 | . . 1 . 2 1 5 . . 1 6 Power . | . . . . . . . . . . . Propulsion 3 | . . 1 . . 1 1 . . . . Utility 7 | . . . . 1 . 3 . . . 3 Weapon 6 | . . . . 1 . 1 . . 1 3 Tool/Special . | . . . . . . . . . . . Average Slot Usage (%) 73 | . 93 84 86 90 74 64 56 65 65 63 Engine 4 | . 14 13 3 9 8 1 . . . 1 Core 3 | . . . 3 . . 4 7 10 10 7 Treads 4 | . 21 28 2 . 2 . . . . 2 Leg 4 | . 2 . 15 . 5 1 2 5 5 1 Hover 6 | . . . 13 32 14 3 . . . 1 Device 7 | . 10 . . . 8 10 8 15 15 13 Storage 7 | . 14 14 9 9 9 5 5 5 5 5 Processor 7 | . . . . . . 15 15 15 15 14 Hackware 3 | . . . 1 9 5 5 5 5 5 5 Protection 4 | . . . 18 18 5 . 2 . . 1 Energy Cannon 1 | . . . . . . 4 2 4 . . Ballistic Gun 5 | . 28 13 7 1 7 1 1 . . . Ballistic Cannon 1 | . . 10 . . . 1 . . 5 5 Impact Weapon 3 | . . 2 7 9 8 . . . . . Slashing Weapon 1 | . . . . . . 3 . . . . Peak Build Rating 133 | 6 7 13 37 38 48 94 112 113 114 133 Average Rating 59 | 4 6 9 25 33 44 83 90 110 113 115 On Entrance 49 | . 6 6 13 36 38 48 60 110 113 113 Avg Prop Armor Cover (%) 6 | . . . 9 . 6 . . . . . Naked Turns . | . . . . . . . . . . . Heaviest Build 64 | 13 13 14 29 23 26 31 41 46 51 64 Greatest Support 79 | 10 40 40 60 32 32 27 79 79 49 59 Greatest Overweight (x) 5 | 1 4 . 2 . 2 1 5 . 1 1 Average Overweight (x) . | . . . . . . . . . . . Largest Inventory Capacity 10 | 8 8 8 8 8 8 8 10 10 10 10 Average Capacity 8 | 7 8 8 8 8 8 8 8 10 10 9 Most Carried 10 | 3 7 8 8 8 8 8 10 10 10 10 Average Carried 7 | 2 4 7 7 7 7 7 6 10 9 9 Final Capacity 10 | 8 8 8 8 8 8 8 10 10 10 5 Final Carried 10 | 3 7 8 8 8 7 8 10 10 10 5 Scrap Engine Consumption 120 | . . . . . 22 30 32 8 1 27 Constructs Created 8 | . . . . . 3 1 3 . . 1 Constructs Modified 38 | . . . . . 6 10 10 5 1 6 Class Distribution -------------------- 47% | Mutant 21% | Construct 17% | Scout 7% | Scavenger-Mutant 3% | Tank Dominant Class ---------------- Mutant | -10/Materials Mutant | -10/Subcaves Mutant | -8/Materials Mutant | -8/Storage Mutant | -8/Recycling Scout | -6/Factory Mutant | -5/Factory Construct | -5/Upper Caves Construct | -5/Upper Caves Construct | -5/Warlord Resources | -11 -10 -10 -8 -8 -8 -6 -5 -5 -5 -5 ----------- Run | Yrd Mat Sub Mat Sto Rec Fac Fac Upp Upp War Matter Collected 3422 | 261 273 280 596 111 240 792 427 94 95 253 Remotely . | . . . . . . . . . . . Salvage Created 6465 | 33 430 145 1823 811 222 1025 967 294 271 444 Parts 296 | 5 35 7 63 21 12 60 43 9 16 25 Haulers Intercepted 8 | . . . 5 2 . 1 . . . . Recyclers Shooed 2 | 1 . . 1 . . . . . . . Parts Field Recycled . | . . . . . . . . . . . Retrieved Matter . | . . . . . . . . . . . Parts Self-Destructed 28 | . . 6 . . . . . 7 15 . Prevented . | . . . . . . . . . . . Parts Restored 1 | . . . . . . 1 . . . . Broken 1 | . . . . . . 1 . . . . Kills | -11 -10 -10 -8 -8 -8 -6 -5 -5 -5 -5 ------- Run | Yrd Mat Sub Mat Sto Rec Fac Fac Upp Upp War Combat Hostiles Destroyed 107 | . 12 7 26 11 5 17 12 4 5 8 Melee 23 | . . . 10 5 1 2 5 . . . Guns 32 | . 12 3 8 . 3 4 2 . . . Cannons 28 | . . 2 . . . 11 5 . 3 7 AOE 9 | . . 2 . . . . . 4 2 1 Classes Destroyed 15 | 1 5 2 4 . . 2 . . . 1 Worker 6 | . 1 . 4 . . . 1 . . . Builder 3 | . . . . . . 3 . . . . Tunneler 2 | 2 . . . . . . . . . . Hauler 8 | . . . 5 2 . 1 . . . . Recycler 6 | . . . 2 2 . 1 1 . . . Operator 3 | . 1 . 1 . . 1 . . . . Watcher 11 | . 2 . 5 1 . 2 1 . . . Swarmer 15 | . 6 1 . . . 3 . 4 . 1 Grunt 41 | . 6 2 17 6 . 2 4 . 3 1 Duelist 1 | . . . 1 . . . . . . . Sentry 20 | . . 1 7 5 1 3 3 . . . Hunter 5 | . . . 1 . . 1 . . 2 1 Programmer 15 | . . . . . . 8 5 . . 2 Executioner 3 | . . . . . . . . . . 3 Subdweller 7 | . . 3 . . 4 . . . . . Best Kill Streak 8 | 2 8 2 6 5 2 4 3 4 3 3 Combat Bots Only 6 | . 6 2 5 2 2 3 2 4 3 3 Max Kills in Single Turn 2 | 1 1 1 1 1 1 2 1 2 1 1 Gunslinging . | . . . . . . . . . . . Exploded 2 | . . 1 . . . . . 2 1 1 Melee 1 | . . . 1 1 1 1 1 . . . Uniques/NPCs Destroyed . | . . . . . . . . . . . Combat | -11 -10 -10 -8 -8 -8 -6 -5 -5 -5 -5 -------- Run | Yrd Mat Sub Mat Sto Rec Fac Fac Upp Upp War Hostile Shots Fired 1076 | . 51 45 151 45 33 329 99 5 23 295 Missed 333 | . 14 18 34 10 13 112 27 2 8 95 Hits 743 | . 37 27 117 35 20 217 72 3 15 200 Melee 15 | . . . 6 . . 3 . . . 6 Projectile 728 | . 37 27 111 35 20 214 72 3 15 194 AOE 1 | . . . . . . 1 . . . . Critical Strikes 22 | . . 3 5 2 . 3 5 . . 4 Actively Blocked 1 | . . . 1 . . . . . . . Damage Taken 12045 | . 366 457 1915 537 410 2736 1549 81 221 3773 Core 1610 | . 58 42 216 50 19 212 195 12 21 785 Absorbed by Shields 108 | . . . . . . . . . . 108 Redirected to Shielding 193 | . . . 31 18 . . 144 . . . Regen/Repaired (Parts) 2563 | . . . 101 58 93 672 869 371 . 399 Core Remaining (%) 70 | 100 . 60 . . 48 75 . . . . Volleys Fired 295 | 8 36 31 42 1 24 60 39 3 11 40 Largest 2 | 2 2 2 2 1 2 2 1 1 1 1 Hottest 260 | 40 40 61 61 25 50 81 129 43 129 260 Shots Fired 460 | 16 72 49 78 2 34 116 39 3 11 40 Gun 280 | 16 72 23 70 2 34 42 21 . . . Cannon 160 | . . 17 8 . . 74 18 . 9 34 Launcher 20 | . . 9 . . . . . 3 2 6 Special . | . . . . . . . . . . . Kinetic 382 | 16 72 40 78 2 34 76 21 . 9 34 Thermal 64 | . . . . . . 40 18 . . 6 Explosive 14 | . . 9 . . . . . 3 2 . Electromagnetic . | . . . . . . . . . . . Robot Hit Streak 19 | 2 11 19 10 4 10 8 10 1 7 3 Robot Miss Streak 4 | 3 2 3 4 . 1 3 2 1 1 4 Penetration Max 1 | . . . . . . 1 . . . . Secondary Targets 1 | . . . 1 . . . . . . . Max Gunslinging Chain 1 | . . . 1 . . . . . . . Shots Hit Robots 444 | 6 43 35 105 31 34 98 58 11 9 14 Core Hits 168 | 2 22 14 32 7 7 37 20 7 9 11 Critical Kills 7 | . 1 . 3 1 1 . . . . 1 Critical Parts Destroyed 24 | . . . 12 7 2 1 2 . . . Critical Strikes 42 | . 1 4 15 8 3 2 7 1 . 1 Destroy 5 | . 1 . 1 . . . 2 . . 1 Blast 4 | . . 4 . . . . . . . . Smash 26 | . . . 14 8 3 1 . . . . Sever 5 | . . . . . . 1 4 . . . Impale 2 | . . . . . . . 1 1 . . Melee Attacks 251 | . . 2 88 53 12 50 36 10 . . Impact 167 | . . 2 88 53 12 12 . . . . Slashing 62 | . . . . . . 38 24 . . . Piercing 22 | . . . . . . . 12 10 . . Sneak Attacks 24 | . . . 11 5 . 4 4 . . . Combat Hostiles 2 | . . . . 1 . . 1 . . . Follow-up Attacks . | . . . . . . . . . . . Damage Inflicted 17167 | 78 551 877 4072 1612 750 3416 2551 1012 622 1626 Guns 3175 | 78 551 163 756 25 402 814 386 . . . Cannons 4724 | . . 235 101 . . 1718 922 . 383 1365 Explosions 1420 | . . 479 . . . 19 . 422 239 261 Melee 7848 | . . . 3215 1587 348 865 1243 590 . . Ramming . | . . . . . . . . . . . Kinetic 6017 | 78 551 398 857 25 402 1572 386 . 383 1365 Thermal 2143 | . . . . . . 960 922 . . 261 Explosive 1140 | . . 479 . . . . . 422 239 . Electromagnetic 19 | . . . . . . 19 . . . . Impact 5347 | . . . 3215 1587 348 197 . . . . Slashing 1618 | . . . . . . 668 950 . . . Piercing 883 | . . . . . . . 293 590 . . Highest Corruption 12 | . . . 3 3 3 9 4 4 4 12 Average Corruption 3 | . . . 2 3 3 4 2 4 4 1 Corruption Purged 7 | . . . . . . 7 . . . . Corruption Blocked . | . . . . . . . . . . . Effects 126 | . . . 6 15 24 50 11 6 4 10 Message Errors 27 | . . . . 3 5 10 3 2 . 4 Matter Fused 30 | . . . 1 3 8 12 2 1 2 1 Heat Flow Errors 23 | . . . 3 2 3 8 5 1 1 . Energy Discharges 15 | . . . . 4 2 6 . . . 3 Parts Rejected 4 | . . . . . . 2 . . 1 1 Data Loss (minor) 14 | . . . 2 . 3 7 . 1 . 1 Data Loss (major) 5 | . . . . . 1 3 . 1 . . Misfires 1 | . . . . 1 . . . . . . Alerts 5 | . . . . 2 . 2 1 . . . Weapon Failures 2 | . . . . . 2 . . . . . Overload Shots . | . . . . . . . . . . . Overflow Damage 2524 | . . 3 1201 516 121 272 62 244 22 83 Projectiles 279 | . . 3 16 . . 93 62 . 22 83 Explosions 1 | . . . . . . . . 1 . . Melee 2244 | . . . 1185 516 121 179 . 243 . . Knockbacks 28 | . . 2 8 2 4 7 . . 1 4 Impact 10 | . . . 4 2 4 . . . . . Kinetic 16 | . . 2 2 . . 7 . . 1 4 Secondary 2 | . . . 2 . . . . . . . Self-Inflicted Damage 49 | . . 6 . . . 43 . . . . Shots 2 | . . 1 . . . 1 . . . . Rammed . | . . . . . . . . . . . Targets Rammed . | . . . . . . . . . . . Kicked . | . . . . . . . . . . . Crushed . | . . . . . . . . . . . Highest Temperature 584 | . 2 8 219 227 241 272 349 170 202 584 Average Temperature 89 | . 2 8 43 94 59 46 73 92 91 196 Received Heat Transfer 2771 | . 99 156 846 243 69 483 405 . 27 443 Effects 8 | . . . . . 2 . . . . 6 Shutdowns 3 | . . . . . . . . . . 3 Interference 2 | . . . . . 2 . . . . . Matter Decay 1 | . . . . . . . . . . 1 Damage (minor) 2 | . . . . . . . . . . 2 Siege Activations . | . . . . . . . . . . . Martial Activations . | . . . . . . . . . . . Shielding Activations . | . . . . . . . . . . . Robots Disrupted . | . . . . . . . . . . . Combat Hostiles . | . . . . . . . . . . . Robots Corrupted 24 | . . . 15 8 1 . . . . . Combat Hostiles 15 | . . . 8 6 1 . . . . . Parts Fried 37 | . . . 25 11 1 . . . . . Impact Corruptions 56 | . . . 36 15 4 1 . . . . Robots Melted . | . . . . . . . . . . . Combat Hostiles . | . . . . . . . . . . . Parts Melted 3 | . . . . . . 3 . . . . Heat Transferred 2175 | . . . . . . 1259 555 . . 361 Parts Sabotaged . | . . . . . . . . . . . Parts Stolen . | . . . . . . . . . . . Parts Stripped . | . . . . . . . . . . . Power Chain Reactions . | . . . . . . . . . . . Alert | -11 -10 -10 -8 -8 -8 -6 -5 -5 -5 -5 ------- Run | Yrd Mat Sub Mat Sto Rec Fac Fac Upp Upp War Maximum Alert Level 1 | . . . 1 1 . 1 . . . . Low Security (%) 92 | 100 100 . 77 79 100 94 100 . . . Level 1 7 | . . . 22 20 . 5 . . . . Level 2 . | . . . . . . . . . . . Level 3 . | . . . . . . . . . . . Level 4 . | . . . . . . . . . . . Level 5 . | . . . . . . . . . . . High Security . | . . . . . . . . . . . Max Security . | . . . . . . . . . . . Peak Influence 364 | 10 157 . 229 364 134 295 137 . . . Initial 133 | . . . . 78 133 . 122 . . . Average 94 | . 55 . 129 161 16 106 89 . . . Influence Increases 3995 | 10 423 105 843 592 45 843 449 105 120 460 Destroy 0b10 Robot/C 2060 | . 240 80 520 280 20 340 240 80 100 160 Destroy 0b10 Robot/NC 210 | 10 20 . 85 25 . 40 15 15 . . Destroy Leader 508 | . 54 10 130 76 . 136 72 10 20 . Allied During Kill 17 | . . . . 16 1 . . . . . Successful Hack 149 | . 31 . 13 23 6 73 3 . . . Select Force Hacks 90 | . 60 . 30 . . . . . . . Disable Machine 120 | . . . . . 15 60 45 . . . Destroy Structure 76 | . 3 . 5 7 3 44 14 . . . Partial Spotted 90 | . . . . 30 . 45 15 . . . Lose Combat Pursuer 675 | . 15 15 60 135 . 105 45 . . 300 Influence Decreases 3865 | 10 377 151 656 435 389 592 617 171 137 330 Entered New Map 507 | . . 23 . 109 211 . 129 31 4 . Time Decay 2968 | 10 357 128 566 286 168 522 458 140 133 200 Lost Part 370 | . 20 . 90 20 10 70 30 . . 130 Lost Ally 20 | . . . . 20 . . . . . . Squads Dispatched 33 | . 4 . 3 3 . 20 3 . . . Investigation 7 | . 3 . 1 . . 3 . . . . Extermination 12 | . . . . . . 9 3 . . . Reinforcement 10 | . 1 . 2 1 . 6 . . . . Assault 4 | . . . . 2 . 2 . . . . Garrison . | . . . . . . . . . . . Intercept . | . . . . . . . . . . . Searches Triggered . | . . . . . . . . . . . Construction Impeded . | . . . . . . . . . . . Haulers Reinforced . | . . . . . . . . . . . Active Scanning Responses . | . . . . . . . . . . . Cargo Convoy Interrupts 1 | . . . . . . 1 . . . . Stealth | -11 -10 -10 -8 -8 -8 -6 -5 -5 -5 -5 --------- Run | Yrd Mat Sub Mat Sto Rec Fac Fac Upp Upp War Distress Signals 21 | . 3 . 4 5 1 5 1 . . 2 Communications Jammed . | . . . . . . . . . . . Distress Signals . | . . . . . . . . . . . Times Spotted 296 | . 18 8 45 28 10 45 26 4 6 106 Peak Tracking Total 24 | . 4 2 6 12 2 6 5 4 7 24 Tactical Retreats 28 | . 1 1 4 4 2 5 3 . . 8 Traps | -11 -10 -10 -8 -8 -8 -6 -5 -5 -5 -5 ------- Run | Yrd Mat Sub Mat Sto Rec Fac Fac Upp Upp War Traps Triggered 7 | . 1 . 2 2 . . 1 1 . . Indirectly . | . . . . . . . . . . . Trap Hack Attempts . | . . . . . . . . . . . Triggered . | . . . . . . . . . . . Disarmed . | . . . . . . . . . . . Reprogrammed . | . . . . . . . . . . . Reused . | . . . . . . . . . . . Traps Extracted . | . . . . . . . . . . . Installed . | . . . . . . . . . . . Triggered . | . . . . . . . . . . . Machines | -11 -10 -10 -8 -8 -8 -6 -5 -5 -5 -5 ---------- Run | Yrd Mat Sub Mat Sto Rec Fac Fac Upp Upp War Machines Disabled 10 | . . 1 . . 1 4 3 . . 1 Max in Single Turn 1 | . . 1 . . . 1 1 . . 1 Garrison Access 3 | . . . . . . 3 . . . . Machines Repaired . | . . . . . . . . . . . Machines Dismantled . | . . . . . . . . . . . Machines Sabotaged . | . . . . . . . . . . . Overloaded Fab Kills . | . . . . . . . . . . . Hacking | -11 -10 -10 -8 -8 -8 -6 -5 -5 -5 -5 --------- Run | Yrd Mat Sub Mat Sto Rec Fac Fac Upp Upp War Machines Accessed 71 | . 8 1 11 10 11 26 3 . . 1 Terminals 37 | . 6 . 7 8 2 12 2 . . . Fabricators 5 | . . . . . . 5 . . . . Repair Stations 6 | . . . 1 1 . 3 1 . . . Recycling Units 11 | . 2 . 1 . 8 . . . . . Scanalyzers 5 | . . . 2 . . 3 . . . . Garrison Access 4 | . . . . 1 . 3 . . . . Total Hacks 164 | . 23 1 26 28 19 59 7 . . 1 Successful 95 | . 12 1 15 18 12 32 4 . . 1 Failed 69 | . 11 . 11 10 7 27 3 . . . Catastrophic 6 | . . . . 1 1 4 . . . . Database Lockouts . | . . . . . . . . . . . Manual 76 | . 18 . 11 15 4 26 2 . . . Terminals 95 | . 21 . 15 24 4 27 4 . . . Fabricators 16 | . . . . . . 16 . . . . Repair Stations 15 | . . . 3 2 . 7 3 . . . Recycling Units 16 | . 2 . 1 . 13 . . . . . Scanalyzers 11 | . . . 7 . . 4 . . . . Garrison Access 7 | . . . . 2 . 5 . . . . Terminal Hacks 27 | . 3 1 3 10 3 5 1 . . 1 Part Schematic 3 | . . . . 1 . 2 . . . . Robot Analysis 2 | . . . . 2 . . . . . . Prototype ID Bank 2 | . 1 . . 1 . . . . . . Open Door 2 | . . . . 1 . . . . . 1 Branch Access Points 1 | . . . 1 . . . . . . . Terminal Index 2 | . 1 . . 1 . . . . . . Alert Level 7 | . . . 1 1 1 3 1 . . . Locate Traps 2 | . 1 . 1 . . . . . . . Transport Status 1 | . . . . 1 . . . . . . Hauler Manifests 1 | . . . . 1 . . . . . . Zone Layout 1 | . . . . 1 . . . . . . Proto ID Catalog 1 | . . 1 . . . . . . . . Release Object 2 | . . . . . 2 . . . . . Fabricator Hacks 7 | . . . . . . 7 . . . . Network Status 1 | . . . . . . 1 . . . . Load Schematic 4 | . . . . . . 4 . . . . Build 2 | . . . . . . 2 . . . . Repair Station Hacks 10 | . . . 2 2 . 4 2 . . . Scan Component 6 | . . . 1 1 . 3 1 . . . Repair 4 | . . . 1 1 . 1 1 . . . Recycling Unit Hacks 7 | . . . . . 7 . . . . . Retrieve Components 7 | . . . . . 7 . . . . . Scanalyzer 6 | . . . 3 . . 3 . . . . Insert Component 3 | . . . 2 . . 1 . . . . Analyze 2 | . . . 1 . . 1 . . . . Retrieve Study 1 | . . . . . . 1 . . . . Garrison Access Hacks 2 | . . . . . . 2 . . . . Seal Access 2 | . . . . . . 2 . . . . Unauthorized Hacks 36 | . 9 . 7 6 2 11 1 . . . Terminals 29 | . 7 . 6 6 1 8 1 . . . Track 2 | . . . . 1 . 1 . . . . Botnet 2 | . 1 . 1 . . . . . . . Operators 1 | . 1 . . . . . . . . . Skim 24 | . 5 . 5 5 1 7 1 . . . Fabricators 3 | . . . . . . 3 . . . . Prioritize 1 | . . . . . . 1 . . . . Recompile 2 | . . . . . . 2 . . . . Repair Stations . | . . . . . . . . . . . Recycling Units 4 | . 2 . 1 . 1 . . . . . Mask 1 | . . . . . 1 . . . . . Tunnel 3 | . 2 . 1 . . . . . . . Scanalyzers . | . . . . . . . . . . . Garrison Access . | . . . . . . . . . . . Data Cores Recovered . | . . . . . . . . . . . Used . | . . . . . . . . . . . Hacking Detections 42 | . 6 . 7 6 6 14 3 . . . Full Trace Events 1 | . . . . . . 1 . . . . Feedback Events . | . . . . . . . . . . . Feedback Blocked . | . . . . . . . . . . . Robot Schematics Acquired . | . . . . . . . . . . . Robots Built . | . . . . . . . . . . . Authchips . | . . . . . . . . . . . Time . | . . . . . . . . . . . Total Robot Build Rating . | . . . . . . . . . . . Part Schematics Acquired 5 | . . . 1 1 . 3 . . . . Parts Built 3 | . . . . . . 3 . . . . Authchips 2 | . . . . . . 2 . . . . Time 115 | . . . . . . 115 . . . . Total Part Build Rating 14 | . . . . . . 14 . . . . Part Studies Acquired 1 | . . . . . . 1 . . . . Parts Repaired 4 | . . . 1 1 . 1 1 . . . Time 204 | . . . 44 60 . 50 50 . . . Parts Recycled . | . . . . . . . . . . . Recycled Matter . | . . . . . . . . . . . Retrieved Matter . | . . . . . . . . . . . Retrieved Components 39 | . . . . . 39 . . . . . Parts Scanalyzed 3 | . . . 2 . . 1 . . . . Part Schematics Acquired 2 | . . . 1 . . 1 . . . . Parts Damaged 1 | . . . . . . 1 . . . . Bothacking | -11 -10 -10 -8 -8 -8 -6 -5 -5 -5 -5 ------------ Run | Yrd Mat Sub Mat Sto Rec Fac Fac Upp Upp War Used RIF Installer . | . . . . . . . . . . . Robots Hacked . | . . . . . . . . . . . Non-combat . | . . . . . . . . . . . Combat . | . . . . . . . . . . . Robot Hacks Applied . | . . . . . . . . . . . Relay Couplers Released 3 | . . . . . . 3 . . . . Machine Destruction 3 | . . . . . . 3 . . . . Fabnet Peak Effective % . | . . . . . . . . . . . Robots Rewired . | . . . . . . . . . . . Allies Hacked . | . . . . . . . . . . . Hacks Repelled . | . . . . . . . . . . . Allies | -11 -10 -10 -8 -8 -8 -6 -5 -5 -5 -5 -------- Run | Yrd Mat Sub Mat Sto Rec Fac Fac Upp Upp War Total Allies 2 | . . . . 2 . . . . . . Largest Group 2 | . . . . 2 1 . . . . . Highest-Rated Group 62 | . . . . 62 31 . . . . . Highest-Rated Ally 31 | . . . . 31 31 . . . . . Total Orders . | . . . . . . . . . . . Ally Attacks 35 | . . . . 13 22 . . . . . Total Damage 483 | . . . . 189 294 . . . . . Kills 7 | . . . . 3 4 . . . . . Allies Corrupted . | . . . . . . . . . . . Allies Melted 1 | . . . . . . . . . . 1 Intel | -11 -10 -10 -8 -8 -8 -6 -5 -5 -5 -5 ------- Run | Yrd Mat Sub Mat Sto Rec Fac Fac Upp Upp War Active Infowar (turns) 7405 | 31 812 . . . . 3541 1147 291 309 1274 Optics 6562 | . . . . . . 3541 1147 291 309 1274 Sensors 4111 | . . . . . . 2988 162 291 308 362 Seismic 843 | 31 812 . . . . . . . . . Machine Analysis 18 | . . . . . . 18 . . . . Robot Analysis Total 2 | . . . . 2 . . . . . . Derelict Logs Recovered 1 | . . . . . . . . 1 . . Drone Launches . | . . . . . . . . . . . Drone Recoveries . | . . . . . . . . . . . Exploration | -11 -10 -10 -8 -8 -8 -6 -5 -5 -5 -5 ------------- Run | Yrd Mat Sub Mat Sto Rec Fac Fac Upp Upp War Turns Passed 12815 | 124 1037 1014 2092 639 1330 3558 1147 291 309 1274 Spaces Moved 10541 | 50 423 482 1121 675 1015 4234 870 348 384 939 Core 20 | 19 1 . . . . . . . . . Treads 1239 | . 351 482 74 . . . 68 . . 264 Legs 3623 | 31 71 . 493 . 304 832 600 348 384 560 Wheels . | . . . . . . . . . . . Hover 5523 | . . . 554 675 711 3402 66 . . 115 Flight 136 | . . . . . . . 136 . . . Fastest Speed 40 | 50 160 160 40 40 40 56 47 70 70 70 Average Speed 83 | 135 165 160 88 41 95 63 84 70 72 107 Slowest Speed 406 | 190 250 160 200 45 180 134 406 70 128 198 Overloaded Moves . | . . . . . . . . . . . Propulsion Burnouts . | . . . . . . . . . . . Robots Hopped . | . . . . . . . . . . . Potential Cave-ins . | . . . . . . . . . . . Cave-ins Triggered . | . . . . . . . . . . . Exploration Rate (%) 61 | 4 76 31 72 85 95 75 26 61 60 90 Regions Visited 10 Branch Regions 6 Pre-discovered Areas 9 | . 4 . 2 1 . 2 . . . . Known Exits Taken 8 | . 1 . 1 1 1 1 1 1 1 . Unknown Exits Taken 2 | 1 . 1 . . . . . . . . Scrap Searched 9 | . . 4 . . . . . 1 4 . Spaces Dug 46 | . . . 3 7 2 29 4 . . 1 Terrain Destroyed 164 | . . 25 3 7 2 41 7 32 26 21 Melee 40 | . . . 3 7 2 24 4 . . . Projectile 41 | . . . . . . 17 3 . 5 16 AOE 83 | . . 25 . . . . . 32 21 5 Terrain Rammed . | . . . . . . . . . . . Walls Destroyed . | . . . . . . . . . . . Machines Disabled . | . . . . . . . . . . . Actions | -11 -10 -10 -8 -8 -8 -6 -5 -5 -5 -5 --------- Run | Yrd Mat Sub Mat Sto Rec Fac Fac Upp Upp War Total 13822 | 88 689 678 2052 978 1335 4879 1184 370 404 1165 Wait 2454 | 22 224 146 750 221 266 443 215 6 5 156 Move 10531 | 49 422 481 1120 674 1014 4233 869 347 383 939 Hop . | . . . . . . . . . . . Pick Up 45 | 3 5 5 7 2 1 11 4 1 1 5 Fast Attach 49 | 6 1 . 22 3 2 10 3 . 1 1 Attach 30 | . 1 2 4 . . 10 8 . . 5 Detach 19 | . . . . . 4 8 6 . . 1 Swap 62 | . . 7 4 3 3 33 3 2 2 5 Drop 53 | . . 4 14 5 9 12 . 1 1 7 Fire 295 | 8 36 31 42 1 24 60 39 3 11 40 Melee 251 | . . 2 88 53 12 50 36 10 . . Ram . | . . . . . . . . . . . Kick . | . . . . . . . . . . . Crush . | . . . . . . . . . . . Escape Stasis 14 | . . . . 14 . . . . . . Rewire 6 | . . . . . . . . . . 6 Trap . | . . . . . . . . . . . Miscellaneous 13 | . . . 1 2 . 9 1 . . . Route ------- -11/Scrapyard -10/Materials (discovered 5 exits: *Mat x3 / [*Min] / *Sub) -10/Subcaves -8/Materials (discovered 4 exits: *Fac x2 / *Sto x2) -8/Storage (discovered 2 exits: Fac / *Rec) -8/Recycling -6/Factory (discovered 6 exits: *Fac x4 / Low x2) -5/Factory -5/Upper Caves -5/Upper Caves -5/Warlord (discovered 1 exit: [*Pro]) History --------- Turn | Location | Event 5 | -11/Scrapyard | Discovered new exit (range 15) 125 | -11/Scrapyard | Entered Materials 316 | -10/Materials | Build established: Mutant 377 | -10/Materials | Discovered new exit (range 5) 431 | -10/Materials | Discovered new exit (range 12) 725 | -10/Materials | Derelicts attacked the area 756 | -10/Materials | Learned location of Subcaves (-10) 792 | -10/Materials | Identified exit to Subcaves 792 | -10/Materials | Identified exit to Materials 794 | -10/Materials | Learned 4 Recycling zone layouts 799 | -10/Materials | Loaded intel: 11 trap records 814 | -10/Materials | Learned 4 Subcaves zone layouts 840 | -10/Materials | Learned location of 1 exit from Storage 1162 | -10/Materials | Entered Subcaves 1282 | -10/Subcaves | Disturbed a concealed Subdweller 1593 | -10/Subcaves | Discovered new exit (range 15) 1979 | -10/Subcaves | Visited 4L-MR0's lab 1995 | -10/Subcaves | Found Meta Core 2176 | -10/Subcaves | Entered Materials 2176 | -8/Materials | Evolved 4 slots: Propulsion x2, Utility x2 2353 | -8/Materials | Lost 4 parts (1p2n1w) 2438 | -8/Materials | Discovered new exit (range 16) 2520 | -8/Materials | Lost 3 parts (2n1w) 2728 | -8/Materials | Build established: Scavenger-Mutant 3112 | -8/Materials | Discovered new exit (range 5) 3187 | -8/Materials | Repaired Mak. Hammer 3668 | -8/Materials | Discovered new exit (range 8) 3726 | -8/Materials | Build established: Mutant 3844 | -8/Materials | Identified exit to Storage 3974 | -8/Materials | Learned Storage stockpile data 4039 | -8/Materials | Learned Factory trap positions 4092 | -8/Materials | Learned 2 Storage zone layouts 4137 | -8/Materials | Learned location of Lower Caves (-7) 4268 | -8/Materials | Entered Storage 4269 | -8/Storage | Identified exit to Recycling 4270 | -8/Storage | Identified exit to Factory 4391 | -8/Storage | Repaired Aerolev Unit 4602 | -8/Storage | Learned location of Zion (-6) 4670 | -8/Storage | Learned Factory emergency access door positions 4771 | -8/Storage | Loaded intel: 8 trap records 4805 | -8/Storage | Learned Factory security intel 4851 | -8/Storage | Learned 12 Factory zone layouts 4860 | -8/Storage | Met a pair of Derelict thieves 4875 | -8/Storage | Used back door to open Recycling access 4907 | -8/Storage | Learned location of 1 exit from Recycling 4907 | -8/Storage | Entered Recycling 4907 | -8/Recycling | Accompanied by 1 ally 4908 | -8/Recycling | Identified exit to Factory 5007 | -8/Recycling | Entered Scraplab 5009 | -8/Recycling | Found Prototype Device 5009 | -8/Recycling | Identified Scrap Engine 5453 | -8/Recycling | Core integrity fell below 50% 6100 | -8/Recycling | Build established: Construct 6237 | -8/Recycling | Entered Factory 6237 | -6/Factory | Evolved 4 slots: Utility x3, Weapon x1 6238 | -6/Factory | Identified exit to Factory 6239 | -6/Factory | Loaded intel: 115 trap records 6838 | -6/Factory | Attached Meta Core, gained temporary slots: Propulsion, Utility, Weapon 7170 | -6/Factory | Fabricated Multitool (x1) 7187 | -6/Factory | Discovered exit to Factory (range 22) 7205 | -6/Factory | Cargo convoy interrupted 7809 | -6/Factory | Repaired Power Sword 7887 | -6/Factory | Build established: Scout 8819 | -6/Factory | Learned 4 Hub_04(d) zone layouts 8849 | -6/Factory | Identified exit to Lower Caves 8883 | -6/Factory | Learned 2 Proximity Caves zone layouts 8899 | -6/Factory | Loaded intel: 4 garrison access locations 8935 | -6/Factory | Fabricated Field Propulsion Drive (x2) 9795 | -6/Factory | Entered another Factory area 9795 | -5/Factory | Evolved 2 slots: Power x1, Utility x1 9825 | -5/Factory | Lost 4 parts (2n2w) 9877 | -5/Factory | Build established: Mutant 10443 | -5/Factory | Repaired Lyr. Medium Armor Plating 10630 | -5/Factory | Spotted B-75 Beast 10882 | -5/Factory | Discovered new exit (range 19) 10899 | -5/Factory | Build established: Construct 10900 | -5/Factory | Identified exit to Upper Caves 10942 | -5/Factory | Entered Upper Caves 11073 | -5/Upper Caves | Found DCF Scrap (13 items) 11178 | -5/Upper Caves | Learned Factory garrison access intel 11213 | -5/Upper Caves | Discovered new exit (range 10) 11232 | -5/Upper Caves | Identified exit to Upper Caves 11233 | -5/Upper Caves | Entered another Upper Caves area 11266 | -5/Upper Caves | Encountered a Warlord checkpoint 11536 | -5/Upper Caves | Discovered new exit (range 2) 11536 | -5/Upper Caves | Identified exit to Warlord 11542 | -5/Upper Caves | Entered Warlord 11563 | -5/Warlord | Discovered new exit (range 8) 11619 | -5/Warlord | System corruption cleaned by Quarantine Array 11718 | -5/Warlord | Visited the Vortex Lab 11737 | -5/Warlord | Warlord's base attacked by MAIN.C 11768 | -5/Warlord | Met Warlord 11906 | -5/Warlord | Spotted B-75 Beast 11909 | -5/Warlord | Spotted B-86 Titan 12011 | -5/Warlord | Warlord forces counterattacked 12134 | -5/Warlord | Spotted Executioner 12136 | -5/Warlord | Spotted Striker 12136 | -5/Warlord | Spotted Striker 12138 | -5/Warlord | Spotted Executioner 12144 | -5/Warlord | Spotted Striker 12199 | -5/Warlord | Spotted CM-W3X(L) 12229 | -5/Warlord | Destroyed Executioner 12260 | -5/Warlord | Spotted Executioner 12273 | -5/Warlord | Spotted Executioner 12315 | -5/Warlord | Lost 41 allies 12325 | -5/Warlord | Destroyed Executioner 12390 | -5/Warlord | Core integrity fell below 50% 12412 | -5/Warlord | Warlord base infiltrated, sounded retreat 12441 | -5/Warlord | Lost 3 allies 12536 | -5/Warlord | Build established: Tank 12600 | -5/Warlord | Found Prototype Hackware 12704 | -5/Warlord | Spotted Executioner 12707 | -5/Warlord | Destroyed Executioner 12773 | -5/Warlord | Spotted Striker 12805 | -5/Warlord | Spotted Striker 12811 | -5/Warlord | Core integrity fell below 20% 12813 | -5/Warlord | Identified Ghost Barrier 12814 | -5/Warlord | System corruption reached 10% 12816 | -5/Warlord | Destroyed by Striker with Plasma Lance Last Messages --------------- 12810_ Slug penetrates Earth. 12811_ P-70 Sage knocked back. 12811_ Acquired 34 matter. 12812_ P-70 Sage resets Striker, system corruption cleaned. 12813_ Penetrated by Slug. 12813_ Imp. Shield Generator destroyed. 12813_ Treaded Armored-Carbon Exoskeleton destroyed. 12813_ Treaded Armored-Carbon Exoskeleton core remains intact and functional. 12813_ Identified Ghost Barrier. 12814_ Acquired 10 matter. 12814_ Identified Exp. Matter Compressor. 12815_ Acquired 12 matter. 12815_ Hvy. KE Autocannon Construct/C destroyed. 12815_ Arm. Scrap Engine damaged due to network destabilization (-7). 12815_ Dropped Med. Storage Unit. 12815_ Slug penetrates Earth. Map ----- +----------------------------------------------------+ | # #??????????????????## ##????????#####????? | | # %#?????????????????## #???????## ###??? | | # #?????????????????# ???????## ##?? | | # ######????????????# ##?????## < #?? | | # # #????????????# #?????# #?? | | ## + #????????????# ##????# #??? | | ?# + #????????????## #????# #???? | | ?# # #?????????????### ##????# #???? | | ?# #??###???????????????## #?????# #????? | | ?# "#????????????????????##^ #???### #?????? | | ## #?????????????????????# ##### ###???? | | # ##?????????????????????# ###?? | | ## #??????###?????????????## ### ### ##? | | ?#=* #?????#""#??????????????## ^ ##?# #? | | ?#%! #?????#""#???????????????### ##?# #? | | ?#!= #?????#""#?????????????????# #?# ##? | | ## ###???#""#?????????????????## ### #?? | | # # #####""#??######?????????### "## ##? | | # # #""#### # ######### ### "### #? | | ==] = ""=! ## # # ## /###" #"# ##? | | *%!* ! ""= [ / ###!![==!* ; ##?? | | !!! = ""[ ! pg ###*!# ## %/ ##??? | | !!!% *%i!g x p !!##|= % ##??? | | ![%*![ = % [%[gbbgp / ! %]%%%%[ %% !# #??? | | %%!] ==%%! K=e ![!%!% % #### #??? | | !!*!= ! %*= %! l@*=%=!!!!*=K##??# #??? | | !!*!% "" %=*%!*! ! *s[s*#??# ##?? | | !* # "" ] =! =! #%]h%!!## #?? | | %" ""|!=";;;;#;##;### %=%h#%#=#% #?? | | #" %["#####;""###########?##??? # =*!!# %#?? | | ## "#???##""#????????????????## ### #?? | | ?# "#????#""#????????????????# ### ##?? | | ## ##????#""#???????????????## ##?# #??? | | " #?????#""#???????????????# #??## ##??? | | " #?????#""#???????????????# #???## #???? | | " #??????###???????????????# ##????# #???? | | + #????????????????????????# #?????## ##??? | | # #???????????????????????## ##????## #??? | | #" #??????????????????????## ##??## #??? | | # #?????????????????????# #??# #??? | | # #?????????????????##### ## #?# #??? | | + #????????????????## # ##?# ## #??? | | # #????????????????# #??# ## #??? | | # #????????????????# #??? ## ##??? | | #######????????????????# ## #??# #???? | | ???????????????????????####?# #???## ##???? | | ???????????????????????????? ##?????#####????? | | ????????????????????????????####???????????????? | | ???????????????????????????????????????????????? | | ???????????????????????????????????????????????? | +----------------------------------------------------+ Best States ------------- Heat Dissipation 71 Energy Generation 36 Energy Capacity 498 Matter Stores 300 Matter Capacity 300 Sight Range 22 Robot Scan Range 16 Terrain Scan Density 10 Armor Coverage 225 Core Shielding 20 Propulsion Shielding 90 Utility Shielding 66 Evasion (%) 65 Melee Accuracy 8 Recoil Reduction 4 Offensive Hacking 12 Authchip Count 1 Item Schematics ----------------- Multitool | -8/Materials | Scanalyzed Gravmag System | -8/Storage | Hacked Imp. System Restoration Module | -6/Factory | Scanalyzed Mass Driver | -6/Factory | Hacked Field Propulsion Drive | -6/Factory | Hacked Robot Schematics ------------------ None Fabricated ------------ Multitool | x1 | -6/Factory | Authchip Field Propulsion Drive | x2 | -6/Factory | Authchip Repaired ---------- Mak. Hammer | 27% | -8/Materials Aerolev Unit | 27% | -8/Storage Power Sword | 10% | -6/Factory Lyr. Medium Armor Plating | 27% | -5/Factory Studied --------- Power Sword | -6/Factory | Hacked Alien Tech Used ----------------- None Achievements -------------- Bigger Is Better Challenges ------------ None Game ------ Seed NanofilamentsPhaseDisplacer Manual? 0 Play Time 02:11:30 Cumulative 141.4 hours Start 2026.03.14 @ 12:48:56 End 2026.03.14 @ 15:00:54 Sessions 1 Manual Loads 0 Difficulty Rogue Special Mode None Game No. 267 Rogue 267 Adventurer 0 Explorer 0 Win Type - Total 3 Types 2/0/0/1/0/0/0/0/0/0 Lore% 58 Gallery% 58 Achievement% 44 Wizard Run 0 Options --------- Layout 2 ASCII 0 Keyboard 1 Movement Numpad Keybinds 0 Fullscreen 1 Font 24/Smallcaps Map View 50x44 Zoom Use 0% Tactical HUD 1 Map Filters NONE Filters NONE Steam 1 RUN: de14a782-e37c-45c5-8b9e-59d59db94cc8